bitfinex/quotes_ETHUSD_20250508
["timestamp","ask_amount","ask_price","bid_price","bid_amount"]
[1746665876425,1.36554622,1828.0,1827.1,4.38965199]
[1746665876717,5.4723921,1827.4,1827.0,0.41658446]
[1746665876895,0.54723921,1827.4,1826.8,12.2949297]
[1746665877089,5.47295749,1827.2,1826.8,6.2549297]
[1746665877302,5.4728309,1827.3,1826.9,0.65472892]
[1746665877303,5.47279595,1827.3,1826.9,0.65472892]
[1746665877505,5.47345374,1827.0,1826.9,0.6]
[1746665877680,5.47345374,1827.0,1826.4,0.8289]
[1746665878018,11.51285526,1827.2,1826.4,5.47521318]
[1746665878019,0.7664,1826.9,1826.4,5.47521318]
[1746665878211,5.4742226,1826.8,1826.4,5.47514604]
[1746665878409,6.56902173,1826.8,1826.3,5.47550993]
[1746665878631,6.8538,1827.2,1826.4,0.05474573]
[1746665878936,5.47410996,1826.8,1826.4,5.47504493]
[1746665879290,5.47416273,1826.8,1826.4,5.47513536]
[1746665879498,5.47416273,1826.8,1826.4,5.52987689]
[1746665880446,5.47301499,1827.2,1826.8,5.47393927]
[1746665880618,5.47326955,1827.1,1826.9,0.05473196]
[1746665880819,1.2162089,1828.1,1827.1,0.55]
[1746665881047,5.47174218,1827.6,1827.0,0.8329]
[1746665881334,0.77113844,1827.5,1827.1,0.05472486]
[1746665881518,5.47243379,1827.4,1827.0,0.8329]
[1746665881701,5.69639801,1827.4,1827.0,6.30617899]
[1746665881904,5.69639801,1827.4,1827.0,6.30634182]
[1746665882128,0.22396422,1827.4,1827.1,5.47302349]
[1746665882299,5.69634042,1827.4,1827.1,0.6]
[1746665882502,0.22396422,1827.4,1827.3,5.47255513]
[1746665882700,5.47195119,1827.6,1827.1,1.33219676]
[1746665882900,0.22396422,1827.4,1827.3,5.47242516]
[1746665883101,5.47157157,1827.7,1827.2,5.47283975]
[1746665883301,0.22396422,1827.4,1827.2,5.47263757]
[1746665883539,5.47212341,1827.5,1827.1,5.47307476]
[1746665883725,0.22396422,1827.3,1827.1,10.94601607]
[1746665883922,5.47175783,1827.6,1827.1,5.47292462]
[1746665884116,0.54717578,1827.6,1827.2,0.05471704]
[1746665884324,6.01896171,1827.6,1827.2,5.47270143]
[1746665884652,5.47285464,1827.2,1827.1,30.0]
[1746665884821,5.47181025,1827.6,1827.2,5.47282745]
[1746665885010,6.27148958,1827.8,1827.1,30.0]
[1746665885214,5.47280689,1827.3,1827.1,30.0]
[1746665885539,5.47285464,1827.2,1827.1,30.0]
[1746665885709,6.56742079,1827.2,1827.1,30.0]
[1746665886334,5.47280689,1827.3,1827.1,30.0]
[1746665886335,5.47274394,1827.3,1827.1,30.0]
[1746665886535,5.47285464,1827.2,1827.1,30.0]
[1746665886851,5.4726005,1827.3,1827.1,30.0]
[1746665887033,0.7544,1827.6,1827.1,30.0]
[1746665887243,5.47285464,1827.2,1827.1,30.0]
[1746665887443,5.47271759,1827.3,1827.1,30.0]
[1746665887667,5.47285464,1827.2,1827.1,30.0]
[1746665887967,6.01993243,1827.3,1827.1,30.0]
[1746665888265,5.47266067,1827.3,1827.1,30.0]
[1746665888565,5.47280008,1827.3,1827.1,30.0]
[1746665888772,5.47285464,1827.2,1827.1,30.0]
[1746665889526,5.47221493,1827.5,1827.1,30.0]
[1746665889893,5.47268717,1827.3,1827.1,30.0]
[1746665890069,5.47285464,1827.2,1827.1,30.0]
[1746665890765,5.47271745,1827.3,1827.1,30.0]
[1746665891568,0.23916265,1827.2,1827.1,30.0]
[1746665892928,5.71201729,1827.2,1827.1,30.0]
[1746665893141,0.23916265,1827.2,1827.1,30.0]
[1746665894083,5.71201729,1827.2,1827.1,30.0]
[1746665894588,6.28321902,1827.2,1827.1,30.0]
[1746665895104,7.06491902,1827.2,1827.1,30.0]
[1746665896749,11.57790619,1827.2,1827.1,30.0]
[1746665897365,7.06491902,1827.2,1827.1,30.0]
[1746665898395,7.06491902,1827.2,1827.1,50.0]
[1746665899169,13.61491902,1827.2,1827.1,50.0]
[1746665901473,17.16491902,1827.2,1827.1,48.1901375]
[1746665902293,17.16491902,1827.2,1827.1,46.81006811]
[1746665903513,17.16691902,1827.2,1827.1,46.81006811]
[1746665903711,16.38521902,1827.2,1827.1,46.09796811]
[1746665903867,16.38521902,1827.2,1825.7,3.68655356]
[1746665903868,5.47705115,1825.8,1825.7,3.68655356]
[1746665904215,5.47682379,1825.9,1825.7,3.68655356]
[1746665904413,0.18934934,1825.8,1825.7,3.68655356]
[1746665904771,5.47685413,1825.9,1825.7,3.68655356]
[1746665905030,0.18934934,1825.8,1825.7,3.68655356]
[1746665905404,5.47695878,1825.9,1825.7,3.68655356]
[1746665905698,0.18934934,1825.8,1825.7,3.68655356]
[1746665905878,5.47695878,1825.9,1825.7,4.09891381]
[1746665906080,0.18934934,1825.8,1825.7,4.09891381]
[1746665906301,5.47705115,1825.8,1825.7,4.09891381]
[1746665906502,5.47705115,1825.8,1825.7,0.41236025]
[1746665906801,0.18934934,1825.8,1825.5,0.8199]
[1746665907003,0.18934934,1825.8,1825.6,5.53241629]
[1746665907211,19.726,1826.6,1825.7,6.30606883]
[1746665907423,5.47587266,1826.2,1825.8,5.53167917]
[1746665907574,5.47588153,1826.2,1825.9,5.47655988]
[1746665907902,10.95196921,1826.2,1825.8,5.5316142]
[1746665908107,5.476169,1826.1,1825.8,6.7753804]
[1746665908408,5.47588153,1826.2,1825.8,6.7753804]
[1746665908813,5.47675119,1825.9,1825.8,0.05476481]
[1746665909018,5.47765118,1825.6,1825.5,3.68655356]
[1746665909471,5.47747499,1825.7,1825.5,3.68655356]
[1746665909677,5.47765118,1825.6,1825.5,3.68655356]
[1746665910119,6.5731638,1825.6,1825.5,3.68655356]
[1746665912208,5.47915182,1825.1,1825.0,0.05478351]
[1746665912424,5.47897504,1825.2,1824.9,3.68655356]
[1746665912606,1.09551262,1825.6,1824.9,3.68655356]
[1746665912902,5.47888194,1825.2,1825.0,0.36865536]
[1746665913107,5.47888194,1825.2,1825.0,0.96865536]
[1746665913316,5.47915182,1825.1,1825.0,0.96865536]
[1746665913495,5.47915182,1825.1,1825.0,0.6]
[1746665913809,5.47945205,1825.0,1824.9,3.68655356]
[1746665915196,5.4812183,1824.5,1824.3,4.53755692]
[1746665916071,5.48020345,1824.8,1824.3,4.53755692]
[1746665916294,5.48125411,1824.4,1824.3,4.48275356]
[1746665916507,5.48075995,1824.6,1824.3,4.48275356]
[1746665916709,6.554,1825.2,1824.4,5.48105491]
[1746665916889,5.4800844,1824.8,1824.4,5.53585987]
[1746665917105,5.4800844,1824.8,1824.4,5.53602633]
[1746665917306,5.47934395,1825.1,1824.5,5.33398717]
[1746665917625,5.47861626,1825.3,1824.7,0.7869]
[1746665917809,5.47861626,1825.3,1824.9,5.47963563]
[1746665918007,5.47861626,1825.3,1824.9,6.58105507]
[1746665918321,19.732,1825.5,1825.1,0.7901]
[1746665918476,5.47855147,1825.3,1825.2,0.05478125]
[1746665918674,5.47855147,1825.3,1825.1,0.7901]
[1746665920020,5.47855147,1825.3,1824.8,0.774]
[1746665920316,5.47877439,1825.3,1825.0,5.47944268]
[1746665920533,5.47838643,1825.4,1825.1,0.0547898]
[1746665920689,0.05478996,1825.2,1824.2,5.48170959]
[1746665921046,0.05478996,1825.2,1824.1,0.8123]
[1746665921047,5.48185505,1824.2,1824.1,0.8123]
[1746665921211,5.48185505,1824.2,1824.0,3.68655356]
[1746665921212,5.48215558,1824.1,1824.0,3.68655356]
[1746665921517,5.68294452,1824.1,1824.0,3.68655356]
[1746665921879,13.44342448,1824.1,1824.0,3.68655356]
[1746665922085,13.38863452,1824.1,1824.0,3.68655356]
[1746665923630,5.48426017,1823.4,1823.3,0.787]
[1746665923843,13.38863452,1824.1,1823.3,0.787]
[1746665923844,5.4837652,1823.6,1823.3,0.787]
[1746665924126,0.14599898,1823.5,1823.3,0.787]
[1746665924282,10.96716134,1823.7,1823.4,0.05483526]
[1746665924483,0.13604848,1823.6,1823.4,0.05483526]
[1746665924680,5.48287784,1823.9,1823.4,0.05483526]
[1746665924921,0.13604848,1823.8,1823.5,5.48384829]
[1746665925084,5.48251708,1824.0,1823.6,0.81762569]
[1746665925288,0.13604848,1823.9,1823.6,0.81762569]
[1746665925698,5.61892734,1823.9,1823.6,0.81762569]
[1746665925994,0.13604848,1823.9,1823.6,0.81762569]
[1746665926985,0.13604848,1823.9,1823.7,4.51298717]
[1746665927181,5.48217662,1824.1,1823.8,0.45129872]
[1746665927400,0.12540566,1824.0,1823.6,0.7628]
[1746665928220,5.60786862,1824.0,1823.6,3.7628]
[1746665928424,5.60789859,1824.0,1823.6,0.7628]
[1746665928599,5.60797292,1824.0,1823.6,0.7628]
[1746665928801,5.60797292,1824.0,1823.7,0.0548219]
[1746665929006,5.483358,1823.7,1823.6,0.7628]
[1746665929235,5.6103348,1823.7,1823.6,0.7628]
[1746665929594,5.48389051,1823.6,1823.1,9.2747113]
[1746665929845,0.12461997,1823.5,1823.1,9.2747113]
[1746665930144,0.12461997,1823.5,1823.2,0.05483567]
[1746665930349,5.48349,1823.7,1823.2,0.43928924]
[1746665930558,0.12461997,1823.6,1823.2,0.43928924]
[1746665930730,5.48381235,1823.6,1823.2,0.43928924]
[1746665931055,0.12304835,1823.5,1823.2,0.43928924]
[1746665931363,5.48245614,1824.0,1823.2,0.38445357]
[1746665931555,5.48396564,1823.5,1823.2,0.43929319]
[1746665931848,5.48318975,1823.8,1823.2,0.43929319]
[1746665932056,0.12304835,1823.4,1823.2,5.92406792]
[1746665932262,5.47915182,1825.1,1823.5,0.7932]
[1746665932457,5.48146037,1824.4,1823.9,5.31972247]
[1746665932617,5.4815883,1824.3,1824.0,0.53197225]
[1746665932953,5.48085574,1824.6,1824.0,6.01413458]
[1746665933110,5.48053127,1824.7,1824.2,0.7846]
[1746665933456,5.48117195,1824.5,1824.2,0.7846]
[1746665933749,5.48083925,1824.6,1824.2,0.7846]
[1746665934125,10.96174244,1824.6,1824.2,0.7846]
[1746665934355,5.48083925,1824.6,1824.2,0.7846]
[1746665934717,25.22464939,1825.3,1824.1,12.12895516]
[1746665934718,5.47697034,1825.9,1824.4,4.3754]
[1746665935049,0.0548,1826.6,1825.9,0.8254]
[1746665935272,0.28632997,1826.6,1826.0,6.647]
[1746665935432,0.2307396,1827.0,1825.9,0.8254]
[1746665935641,5.47375335,1826.9,1825.9,0.8254]
[1746665935834,5.47567938,1826.3,1825.9,0.8254]
[1746665936047,5.47567938,1826.3,1825.4,6.6284209]
[1746665936048,5.47635355,1826.1,1825.3,3.8163]
[1746665936261,5.47628464,1826.1,1825.4,5.47819854]
[1746665936663,0.12496834,1826.0,1825.6,0.8092]
[1746665936873,0.12496834,1826.0,1825.7,12.17695757]
[1746665937058,5.47508676,1826.5,1825.7,6.645]
[1746665937258,5.47508676,1826.5,1826.0,0.8092]
[1746665937259,5.47495613,1826.5,1826.0,0.8092]
[1746665937449,0.14608525,1826.4,1826.0,0.8092]
[1746665937775,5.62137322,1826.4,1826.0,0.8092]
[1746665938074,0.70818939,1826.4,1826.1,0.05475594]
[1746665938231,0.14608525,1826.4,1826.0,6.28552227]
[1746665938767,5.6214894,1826.4,1826.0,0.8092]
[1746665938943,0.14608525,1826.4,1826.1,0.05475528]
[1746665939344,0.14608525,1826.4,1826.0,6.28545468]
[1746665939555,5.47507008,1826.5,1826.0,6.28540531]
[1746665939874,0.14608525,1826.4,1826.0,6.28540531]
[1746665940069,0.14608525,1826.4,1826.0,1.43774053]
[1746665940375,5.47450176,1826.7,1826.1,5.47594231]
[1746665940535,0.14608525,1826.6,1826.1,5.47594231]
[1746665940846,0.14608525,1826.6,1826.3,5.47552585]
[1746665941167,0.14608525,1826.6,1826.2,6.69774691]
[1746665941168,5.64957254,1827.0,1826.5,5.47494424]
[1746665941373,0.15782873,1826.9,1826.5,5.47494424]
[1746665941540,0.15782873,1826.9,1826.6,0.05473875]
[1746665941743,0.15782873,1826.9,1826.7,5.47422175]
[1746665941960,0.15782873,1826.9,1826.8,0.80943071]
[1746665942130,0.15782873,1826.9,1826.8,0.7547]
[1746665942337,0.15782873,1826.9,1826.8,12.92548162]
[1746665942543,0.1759396,1827.0,1826.8,15.37348094]
[1746665942772,0.1759396,1827.0,1826.8,15.37325515]
[1746665942976,0.1759396,1827.0,1826.8,9.89942796]
[1746665943197,0.1759396,1827.0,1826.9,5.47375335]
[1746665943466,0.1759396,1827.0,1826.8,9.89942796]
[1746665943657,0.1759396,1827.0,1826.8,15.37343159]
[1746665943861,0.1759396,1827.0,1826.8,9.89942796]
[1746665944095,5.64942485,1827.0,1826.8,7.3967]
[1746665944305,5.64948616,1827.0,1826.8,7.3967]
[1746665944468,0.1759396,1827.0,1826.8,7.3967]
[1746665945202,0.1759396,1827.0,1826.8,0.7547]
[1746665945500,0.1759396,1827.0,1826.9,6.642]
[1746665945701,0.1759396,1827.0,1826.9,12.79444662]
[1746665945864,0.1759396,1827.0,1826.9,12.73971971]
[1746665946200,0.1759396,1827.0,1826.9,7.26596636]
[1746665946400,0.1759396,1827.0,1826.9,6.68]
[1746665946587,0.1759396,1827.0,1826.8,6.2285491]
[1746665946794,5.64940716,1827.0,1826.8,0.7547]
[1746665946980,0.1759396,1827.0,1826.8,0.7547]
[1746665947185,0.1759396,1827.0,1826.9,0.05473126]
[1746665947381,0.1759396,1827.0,1826.8,0.7547]
[1746665947584,5.64946553,1827.0,1826.8,0.7547]
[1746665947783,5.47375335,1826.9,1826.8,0.7547]
[1746665947982,6.21441208,1827.0,1826.5,6.28242807]
[1746665948167,0.1759396,1827.0,1826.6,5.52937407]
[1746665948516,0.1759396,1827.0,1826.7,5.47413816]
[1746665948696,0.1759396,1827.0,1826.8,5.47380738]
[1746665948865,0.1759396,1827.0,1826.5,6.28228886]
[1746665949067,5.64950807,1827.0,1826.5,6.28228886]
[1746665949380,5.6495208,1827.0,1826.5,6.28228886]
[1746665949694,5.47384943,1826.9,1826.5,6.28239854]
[1746665949870,5.47378614,1826.9,1826.6,0.05473575]
[1746665950829,0.1759396,1827.0,1826.8,5.47394495]
[1746665950976,0.1759396,1827.0,1826.9,5.52848272]
[1746665951179,0.1759396,1827.0,1826.9,6.28615335]
[1746665951622,0.34744319,1827.0,1826.9,12.96415335]
[1746665952022,0.1759396,1827.0,1826.9,12.96415335]
[1746665952352,0.005,1828.4,1827.5,0.8124]
[1746665952479,0.005,1828.4,1828.3,12.09723884]
[1746665952857,0.4309526,1828.8,1828.3,7.43037696]
[1746665953477,0.4309526,1828.8,1828.5,5.46873012]
[1746665953819,0.4309526,1828.8,1828.7,5.4683655]
[1746665954017,0.4309526,1828.8,1828.5,5.46888138]
[1746665954224,0.4309526,1828.8,1828.7,5.4683655]
[1746665954724,1.62764706,1829.0,1828.9,5.46776751]
[1746665954940,1.62764706,1829.0,1828.9,15.09544447]
[1746665955086,1.62764706,1829.0,1828.9,20.84234447]
[1746665955431,1.62764706,1829.0,1828.9,30.33447871]
[1746665955610,7.334799,1829.9,1829.3,5.46641825]
[1746665955916,1.8697479,1829.9,1829.5,0.7924]
[1746665956228,1.8697479,1829.9,1829.6,0.05464527]
[1746665956434,7.33478497,1829.9,1829.6,0.05464527]
[1746665956731,5.46655848,1829.4,1829.2,0.7721]
[1746665956909,1.8697479,1829.9,1828.8,0.8201]
[1746665957219,5.46567555,1829.6,1828.8,0.8201]
[1746665957390,6.01267153,1829.5,1828.8,0.8201]
[1746665957734,5.4671745,1829.1,1828.8,0.8201]
[1746665958017,6.23541935,1829.7,1828.9,5.5223195]
[1746665958018,0.77,1829.7,1828.9,5.5223195]
[1746665958218,5.46613762,1829.5,1829.0,5.46734865]
[1746665958385,5.46585308,1829.6,1829.1,5.46715895]
[1746665958585,12.14123343,1829.8,1828.8,6.28816164]
[1746665958787,5.46717869,1829.1,1828.8,0.8201]
[1746665959029,5.46712822,1829.2,1828.8,0.8201]
[1746665959183,5.4660302,1829.5,1828.9,5.52224765]
[1746665959522,5.46776751,1828.9,1828.8,0.8201]
[1746665959715,6.673,1829.6,1828.5,6.24079698]
[1746665959716,5.46749927,1829.0,1828.5,6.24079698]
[1746665959923,5.46729893,1829.1,1828.6,5.52331452]
[1746665960121,0.7789,1829.4,1828.6,0.05467296]
[1746665960282,0.7789,1829.4,1828.5,6.24094556]
[1746665960484,0.6673,1829.5,1828.6,5.46840478]
[1746665960485,5.46705337,1829.2,1828.6,5.46840478]
[1746665960684,0.6673,1829.5,1828.7,0.60150628]
[1746665960881,5.46701397,1829.2,1828.7,5.46821516]
[1746665961316,5.46746871,1829.0,1828.5,6.2408036]
[1746665961527,5.46730227,1829.1,1828.6,3.0]
[1746665961737,5.46730227,1829.1,1828.7,5.46832598]
[1746665961938,5.46730227,1829.1,1828.6,8.46853627]
[1746665962140,5.46672739,1829.3,1828.7,6.36980378]
[1746665962313,0.6673,1829.5,1828.9,5.46760942]
[1746665962314,5.46645804,1829.4,1828.9,5.46760942]
[1746665962515,5.46657784,1829.3,1828.8,5.46782301]
[1746665962721,5.4665313,1829.4,1828.9,5.46771514]
[1746665962919,6.673,1829.6,1828.5,0.772]
[1746665963301,5.46956188,1828.3,1828.2,0.7804]
[1746665963641,5.46866455,1828.6,1827.8,0.7804]
[1746665963804,5.47075879,1827.9,1827.8,0.7804]
[1746665964006,5.47120418,1827.8,1827.5,7.4514]
[1746665964201,0.7853,1828.3,1827.6,5.47137675]
[1746665964202,5.46986106,1828.2,1827.6,5.47137675]
[1746665964447,0.2101134,1828.1,1827.8,5.47085344]
[1746665964763,5.4698702,1828.2,1827.7,5.47114097]
[1746665964926,0.20394399,1828.1,1827.7,5.47125565]
[1746665965110,5.67411231,1828.1,1827.5,8.19654]
[1746665965451,5.47046234,1828.0,1827.6,0.819654]
[1746665965657,5.67421671,1828.1,1827.7,5.47132028]
[1746665965839,0.20142272,1827.9,1827.6,6.29107171]
[1746665966005,5.47049578,1828.0,1827.6,6.29129774]
[1746665966205,0.19160297,1827.9,1827.6,0.819654]
[1746665966435,5.46998673,1828.2,1827.7,5.47111045]
[1746665966633,5.46998673,1828.2,1827.8,6.01805517]
[1746665966835,0.17589691,1828.1,1827.8,6.01799334]
[1746665967022,0.17589691,1828.1,1827.8,0.54711105]
[1746665967318,5.64616292,1828.1,1827.7,5.47124417]
[1746665967647,0.17589691,1828.1,1827.5,0.7804]
[1746665967824,5.47063976,1828.0,1827.5,6.25222116]
[1746665968020,5.47012041,1828.2,1827.7,5.47116085]
[1746665968221,5.64606989,1828.1,1827.7,10.94228856]
[1746665968439,5.64606989,1828.1,1827.7,1.09422886]
[1746665968620,5.64611543,1828.1,1827.7,6.56547795]
[1746665968811,5.47052583,1828.0,1827.6,5.47153038]
[1746665969036,5.47052583,1828.0,1827.5,6.2523187]
[1746665969246,0.17589691,1827.9,1827.6,5.47164942]
[1746665969455,5.47000149,1828.2,1827.7,0.05470452]
[1746665969763,5.47026307,1828.1,1827.7,5.4712329]
[1746665969963,5.47026307,1828.1,1827.7,5.47133701]
[1746665970135,5.46976073,1828.3,1827.9,5.47067501]
[1746665970335,5.46942697,1828.4,1827.9,0.05470074]
[1746665970667,7.4573,1828.6,1827.9,0.05470074]
[1746665970965,0.8269,1829.2,1828.6,5.46850509]
[1746665971125,5.46798462,1828.9,1828.6,0.7797]
[1746665971530,5.46826703,1828.8,1828.3,6.24903367]
[1746665971739,5.46854683,1828.7,1828.3,0.7797]
[1746665971942,5.4690075,1828.5,1828.3,0.7797]
[1746665972151,5.46973034,1828.3,1828.0,0.7522]
[1746665972362,0.8245,1828.7,1827.8,6.672]
[1746665972669,5.47009297,1828.2,1827.7,30.0]
[1746665972880,5.46937117,1828.4,1827.9,0.05469724]
[1746665973169,5.46879617,1828.6,1828.0,0.7522]
[1746665973335,5.46879575,1828.6,1828.2,5.46973941]
[1746665973661,5.46876716,1828.6,1828.3,0.05468572]
[1746665973874,5.46849403,1828.7,1828.3,5.52420647]
[1746665974033,5.46849403,1828.7,1828.3,5.52404265]
[1746665974362,5.46827191,1828.8,1828.3,0.05468572]
[1746665974566,0.8245,1829.0,1828.3,0.05468572]
[1746665974727,5.46787459,1828.9,1828.4,5.46902505]
[1746665974926,5.63370111,1828.8,1828.3,5.46938434]
[1746665975157,5.46838477,1828.7,1828.2,5.46971048]
[1746665975327,5.46820279,1828.8,1828.4,5.46914737]
[1746665975528,0.16549832,1828.7,1828.4,5.46915653]
[1746665975832,5.46800005,1828.9,1828.5,5.46893857]
[1746665975833,5.46776751,1828.9,1828.5,5.46893857]
[1746665976166,5.46841367,1828.7,1828.0,3.7522]
[1746665976381,6.2920707,1829.0,1828.0,3.7522]
[1746665976526,5.46870789,1828.6,1828.2,5.46961905]
[1746665976875,5.46870789,1828.6,1828.3,0.05468559]
[1746665977077,0.16549832,1828.5,1828.3,0.05468559]
[1746665977369,0.16549832,1828.5,1828.3,5.52421544]
[1746665977554,5.46853639,1828.7,1828.3,5.52403305]
[1746665977756,0.1718434,1828.6,1828.3,5.52403305]
[1746665977957,5.46853639,1828.7,1828.3,10.9933712]
[1746665978269,5.46853639,1828.7,1828.3,5.46933815]
[1746665978270,0.1718434,1828.6,1828.3,5.46933815]
[1746665978637,5.46869165,1828.6,1828.3,5.46933815]
[1746665978838,5.46853639,1828.7,1828.3,5.46933738]
[1746665979146,5.46882803,1828.6,1828.2,5.46976612]
[1746665979359,5.46940246,1828.4,1828.1,6.863]
[1746665979665,5.46940246,1828.4,1828.1,12.33313233]
[1746665979869,5.46986106,1828.2,1827.8,5.47096434]
[1746665980170,5.47087867,1827.9,1827.7,30.0]
[1746665980335,0.1718434,1827.8,1827.7,30.0]
[1746665980541,5.47087867,1827.9,1827.7,30.0]
[1746665980753,0.17236481,1827.8,1827.7,30.0]
[1746665980948,5.4710581,1827.8,1827.7,30.0]
[1746665981272,0.17236481,1827.8,1827.7,30.0]
[1746665981435,0.15365493,1827.8,1827.7,35.47135744]
[1746665981762,0.15365493,1827.8,1827.7,30.0]
[1746665981763,0.15356798,1827.8,1827.7,30.0]
[1746665981964,5.47093394,1827.9,1827.7,30.0]
[1746665982166,0.15356798,1827.8,1827.7,35.47132926]
[1746665982342,5.47049553,1828.0,1827.7,30.0]
[1746665982541,0.15356798,1827.9,1827.7,30.0]
[1746665982940,5.62447937,1827.9,1827.7,30.0]
[1746665983144,0.15356798,1827.9,1827.7,30.0]
[1746665983331,5.46940768,1828.4,1827.9,0.8039]
[1746665983535,0.13070805,1828.3,1828.0,5.5249445]
[1746665983778,0.13070805,1828.3,1828.1,5.47008987]
[1746665983936,5.46908869,1828.5,1828.1,5.47008987]
[1746665984131,5.60115612,1828.4,1828.0,5.52502535]
[1746665984369,5.46971411,1828.3,1828.0,0.05469409]
[1746665984561,5.47003882,1828.2,1827.9,0.8039]
[1746665984878,0.13183951,1828.1,1827.9,0.8039]
[1746665985245,6.57637191,1828.4,1827.7,42.33425569]
[1746665985452,0.13183951,1828.0,1827.7,42.33425569]
[1746665985645,1.1070218,1828.4,1827.7,36.863]
[1746665985844,5.47024731,1828.1,1827.7,30.0]
[1746665986172,0.13288379,1828.0,1827.8,0.0547058]
[1746665986378,0.6644,1828.5,1827.9,5.47075879]
[1746665986379,5.46979078,1828.3,1827.9,5.47075879]
[1746665986672,5.46979078,1828.3,1827.9,5.4705616]
[1746665986673,0.13288379,1828.2,1827.9,5.4705616]
[1746665986872,0.13288379,1828.2,1827.8,0.05469982]
[1746665987078,0.13288379,1828.2,1827.7,35.47118421]
[1746665987079,5.47029506,1828.1,1827.7,35.47118421]
[1746665987437,0.13288379,1828.0,1827.7,35.47133838]
[1746665987640,5.60349432,1828.0,1827.7,35.4713526]
[1746665988267,0.13288379,1828.0,1827.7,35.4713526]
[1746665988472,5.60334376,1828.0,1827.7,30.0]
[1746665988675,0.13288379,1828.0,1827.7,35.47115749]
[1746665988875,5.60344367,1828.0,1827.7,30.0]
[1746665989046,6.57797572,1828.0,1827.7,30.0]
[1746665989241,5.60383211,1827.9,1827.7,30.0]
[1746665989451,5.60366663,1827.9,1827.7,30.0]
[1746665989869,0.13288379,1827.9,1827.7,30.0]
[1746665990074,5.47033177,1828.1,1827.7,30.0]
[1746665990297,0.12093992,1827.8,1827.7,30.0]
[1746665990582,0.12093992,1827.8,1827.7,35.47124867]
[1746665990788,0.6644,1828.8,1828.2,6.28294983]
[1746665990982,5.57798805,1828.7,1828.4,5.46920898]
[1746665991175,5.468908,1828.6,1828.2,6.28304832]
[1746665991480,0.10897103,1828.5,1828.2,6.28304832]
[1746665991695,0.10897103,1828.5,1828.3,0.55703815]
[1746665991991,5.4685283,1828.7,1828.3,6.02649299]
[1746665992195,5.5776628,1828.6,1828.4,0.50234849]
[1746665992555,5.5776628,1828.6,1828.5,0.50234849]
[1746665992757,6.68228093,1828.6,1828.5,0.50234849]
[1746665993659,5.46929299,1828.4,1828.0,0.05469829]
[1746665993889,5.46956403,1828.3,1828.1,0.5026701]
[1746665994061,5.46986106,1828.2,1828.1,0.5026701]
[1746665994407,0.10897103,1828.2,1828.1,0.5026701]
[1746665994569,5.46936492,1828.4,1828.1,0.5026701]
[1746665994775,0.10897103,1828.3,1828.1,0.5026701]
[1746665994962,5.46936492,1828.4,1828.1,0.5026701]
[1746665995159,0.10897103,1828.3,1828.1,5.52474927]
[1746665995474,5.46874606,1828.6,1828.2,5.46986106]
[1746665995678,6.13250743,1828.8,1828.3,0.50291702]
[1746665995885,6.13250743,1828.8,1828.1,6.56947792]
[1746665995886,5.5781914,1828.5,1828.4,0.50291702]
[1746665996060,5.4693726,1828.4,1828.2,0.50291702]
[1746665996460,5.4693726,1828.4,1828.3,0.50291702]
[1746665996870,0.6644,1828.8,1828.3,0.50291702]
[1746665996871,5.46870654,1828.6,1828.3,0.50291702]
[1746665997076,5.46911427,1828.5,1828.3,0.50291702]
[1746665997279,5.46734598,1829.1,1828.5,5.46880488]
[1746665997280,5.4679622,1828.9,1828.5,5.46880488]
[1746665997605,0.10897103,1828.8,1828.6,5.46864119]
[1746665997828,5.46735053,1829.1,1828.7,5.52304358]
[1746665997978,0.10897103,1829.0,1828.8,0.5028656]
[1746665998168,0.10897103,1829.0,1828.9,5.52244317]
[1746665998509,5.46730821,1829.1,1828.9,0.8187]
[1746665998663,5.46730821,1829.1,1828.9,0.5028656]
[1746665998664,0.12133397,1829.0,1828.9,0.5028656]
[1746665998862,0.12133397,1829.0,1828.7,0.8187]
[1746665999087,0.12133397,1829.0,1828.8,0.50271667]
[1746665999259,0.12133397,1829.0,1828.7,6.2869233]
[1746665999260,5.46734598,1829.1,1828.9,0.50274988]
[1746665999468,6.13186856,1829.0,1828.9,0.50274988]
[1746665999697,5.46863131,1828.7,1828.4,0.8187]
[1746666000076,5.46863131,1828.7,1828.5,0.50313017]
[1746666000266,6.13306455,1828.6,1828.5,0.50313017]
[1746666000465,5.46986034,1828.3,1827.9,0.50313017]
[1746666000707,5.4685402,1828.7,1828.2,3.68655356]
[1746666000872,12.99486856,1829.0,1828.4,5.46924824]
[1746666000873,5.4679327,1828.9,1828.4,5.46924824]
[1746666001071,5.4676949,1829.0,1828.5,5.52344017]
[1746666001304,6.01403881,1829.1,1828.5,0.55781676]
[1746666001508,5.46866455,1828.6,1828.3,0.50313017]
[1746666001708,5.46793924,1828.9,1828.5,5.46883345]
[1746666001896,5.46793924,1828.9,1828.5,5.52351505]
[1746666002098,5.46793924,1828.9,1828.5,5.46875601]
[1746666002406,6.67851105,1829.1,1828.5,5.46867182]
[1746666002566,5.46758499,1829.0,1828.6,5.46849459]
[1746666002770,5.46749065,1829.0,1828.6,6.29729459]
[1746666003072,5.46780707,1828.9,1828.6,0.8288]
[1746666003681,0.6644,1829.3,1828.7,0.05467634]
[1746666003682,5.46669758,1829.3,1828.7,0.05467634]
[1746666003908,5.46607295,1829.5,1828.6,0.8288]
[1746666004067,5.46829577,1828.8,1828.3,6.25825266]
[1746666004268,5.46795269,1828.9,1828.4,5.46906048]
[1746666004466,6.863,1829.2,1828.3,0.7889]
[1746666004700,5.46744732,1829.1,1828.4,6.29565827]
[1746666004880,5.46668885,1829.3,1828.9,5.46773784]
[1746666005088,5.46668885,1829.3,1829.0,0.8126]
[1746666005089,5.46658687,1829.3,1829.0,0.8126]
[1746666005397,0.6644,1829.7,1829.0,0.8126]
[1746666005719,6.12984287,1829.7,1829.0,0.8126]
[1746666005871,10.93295773,1829.4,1829.0,6.27989795]
[1746666006068,6.1299457,1829.7,1829.0,6.27989795]
[1746666006069,5.46615201,1829.5,1829.0,7.45465108]
[1746666006300,5.46567555,1829.6,1829.0,0.8126]
[1746666006507,5.4668416,1829.3,1829.0,0.8126]
[1746666006800,5.46567555,1829.6,1828.2,9.68655356]
[1746666006801,5.46806649,1828.8,1828.2,9.68655356]
[1746666007010,0.6644,1829.2,1828.3,0.7533]
[1746666007212,5.46713196,1829.2,1828.7,5.46812601]
[1746666007368,5.46713196,1829.2,1828.8,6.86088131]
[1746666007567,5.46802983,1828.9,1828.5,0.7915]
[1746666007771,5.46802983,1828.9,1828.5,6.26045347]
[1746666007772,5.46798844,1828.9,1828.5,6.26045347]
[1746666007977,10.8544,1829.6,1828.7,5.46822484]
[1746666008218,5.46624537,1829.5,1829.0,5.46723514]
[1746666008536,5.46675409,1829.3,1828.9,5.46762938]